fUSD/lending_fUSD_20251128
["ID","MTS","AMOUNT","RATE_DAILY","PERIOD"]
[395027213,1764349849899,-260.708587,0.00027397,7]
[395027215,1764349849910,-260.708587,0.00027397,7]
[395027217,1764349849921,-260.708587,0.00027397,7]
[395027219,1764349849932,-260.708587,0.00027397,7]
[395027222,1764349849944,-260.708587,0.00027397,7]
[395027224,1764349849955,-260.708587,0.00027397,7]
[395027226,1764349849966,-260.708587,0.00027397,7]
[395027228,1764349849977,-260.708587,0.00027397,7]
[395027231,1764349849993,-260.708587,0.00027397,7]
[395027233,1764349850006,-260.708587,0.00027397,7]
[395027235,1764349850018,-260.708587,0.00027397,7]
[395027238,1764349850031,-260.708587,0.00027397,7]
[395027240,1764349850043,-260.708586,0.00027397,7]
[395027242,1764349850055,-500.0,0.00027397,8]
[395027245,1764349850068,-151.0,0.00027397,7]
[395027247,1764349850079,-151.0,0.00027397,7]
[395027249,1764349850091,-151.0,0.00027397,7]
[395027251,1764349850103,-151.0,0.00027397,7]
[395027254,1764349850114,-180.85165,0.00027397,7]
[395027256,1764349850125,-260.4103811,0.00027398,2]
[395027258,1764349850136,-500.0,0.00027434,7]
[395027260,1764349850148,-686.65,0.000275,7]
[395027263,1764349850159,-2729.39923456,0.00027547,2]
[395027265,1764349850174,-161.0,0.00027671,14]
[395027267,1764349850186,-3284.17,0.00027671,2]
[395027270,1764349850197,-500.0,0.00027826,7]
[395027272,1764349850208,-737.07,0.000279,7]
[395027274,1764349850220,-171.13,0.00027935,15]
[395027276,1764349850231,-171.13,0.00027935,15]
[395027279,1764349850242,-151.0,0.00027942,2]
[395027281,1764349850252,-231.28369723,0.00027946,2]
[395027283,1764349850263,-270.0455652,0.00027946,2]
[395027285,1764349850274,-500.0,0.00027995,7]
[395027287,1764349850285,-400.0,0.00028,120]
[395027290,1764349850295,-1475.65526169,0.000281,2]
[395027292,1764349850306,-166.73091505,0.00028297,120]
[395027294,1764349850318,-500.0,0.00028334,7]
[395027296,1764349850329,-280.03725112,0.00028494,2]
[395027298,1764349850340,-416.03518578,0.00028611,2]
[395027301,1764349850351,-370.91026638,0.00028611,2]
[395027303,1764349850365,-1287.16835794,0.00028646,15]
[395027305,1764349850375,-500.0,0.00028762,7]
[395027307,1764349850386,-166.0,0.00028767,14]
[395027310,1764349850398,-161.0,0.00028767,14]
[395027312,1764349850408,-222.0,0.0002882,30]
[395027314,1764349850419,-500.0,0.00028883,7]
[395027316,1764349850430,-500.0,0.00028943,7]
[395027318,1764349850441,-400.0,0.00029,120]
[395027321,1764349850451,-290.39862941,0.00029042,2]
[395027323,1764349850462,-151.0,0.00029311,2]
[395027325,1764349850473,-166.09830287,0.00029369,110]
[395027327,1764349850483,-872.71676128,0.00029393,7]
[395027329,1764349850494,-301.1433787,0.0002959,2]
[395027332,1764349850504,-2729.39923456,0.00029676,2]
[395027334,1764349850515,-500.0,0.00029727,7]
[395027336,1764349850525,-1011.0,0.00029786,2]
[395027338,1764349850536,-431.42848765,0.0002998,2]
[395027340,1764349850546,-384.63394623,0.0002998,2]
[395027343,1764349850559,-480.32035639,0.0003,30]
[395027345,1764349850570,-293.72243399,0.0003,30]
[395027347,1764349850580,-685.0,0.0003,2]
[395027349,1764349850591,-520.0,0.0003,30]
[395027351,1764349850601,-500.0,0.0003,120]
[395027353,1764349850611,-188.72602701,0.0003013,30]
[395027356,1764349850622,-499.97472537,0.0003013,30]
[395027358,1764349850632,-163.34417214,0.0003013,20]
[395027360,1764349850642,-863.44454704,0.00030136,120]
[395027362,1764349850653,-300.0,0.00030137,120]
[395027364,1764349850663,-200.0,0.00030137,5]
[395027366,1764349850673,-166.0,0.00030205,14]
[395027368,1764349850684,-166.0,0.00030205,14]
[395027371,1764349850694,-206.77,0.000303,14]
[395027373,1764349850705,-179.63687364,0.00030318,2]
[395027375,1764349850721,-151.0,0.0003068,2]
[395027377,1764349850731,-239.84119403,0.00030685,2]
[395027380,1764349850742,-449.56048042,0.00030685,5]
[395027382,1764349850759,-222.0,0.0003084,30]
[395027384,1764349850770,-447.3913417,0.00031349,2]
[395027386,1764349850780,-398.86540225,0.00031349,2]
[395027388,1764349850794,-500.0,0.00031366,7]
[395027390,1764349850804,-153.0,0.00031389,2]
[395027393,1764349850815,-153.0,0.00031389,2]
[395027395,1764349850825,-153.0,0.00031389,2]
[395027397,1764349850835,-153.0,0.00031389,2]
[395027399,1764349850845,-260.33310396,0.00031392,30]
[395027401,1764349850856,-150.0,0.00031392,30]
[395027403,1764349850866,-500.0,0.000314,120]
[395027405,1764349850876,-2729.39923456,0.00031805,2]
[395027407,1764349850887,-500.0,0.00031849,7]
[395027410,1764349850897,-152.0,0.00031926,3]
[395027412,1764349850907,-163.0,0.00032,14]
[395027414,1764349850918,-338.20890592,0.00032,120]
[395027416,1764349850927,-512.65892194,0.00032,14]
[395027418,1764349850938,-334.01245694,0.00032,30]
[395027420,1764349850948,-160.31591815,0.00032,30]
[395027422,1764349850958,-300.0,0.00032,120]
[395027424,1764349850968,-1211.39905541,0.00032,120]
[395027426,1764349850978,-272.2198679,0.00032,120]
[395027428,1764349850988,-160.68436436,0.00032,120]
[395027431,1764349850998,-198.79056431,0.00032,120]
[395027433,1764349851009,-173.09106665,0.00032,120]
[395027434,1764349851019,-175.41954616,0.00032,120]
[395027435,1764349851029,-160.90747591,0.00032,120]
[395027436,1764349851040,-151.0,0.00032049,2]
[395027437,1764349851050,-200.0,0.00032329,120]
[395027438,1764349851061,-150.0,0.00032423,120]
[395027439,1764349851071,-152.0,0.00032522,4]
[395027440,1764349851082,-500.0,0.00032543,7]
[395027441,1764349851093,-686.65,0.000327,7]
[395027442,1764349851103,-463.94482134,0.00032718,2]
[395027443,1764349851114,-1000.0,0.000328,120]
[395027444,1764349851125,-251.80538329,0.00032837,2]
[395027446,1764349851135,-500.0,0.00032838,7]
[395027449,1764349851145,-222.0,0.0003286,30]
[395027451,1764349851156,-300.0,0.00032877,12]
[395027453,1764349851166,-300.0,0.00032877,120]
[395027455,1764349851176,-151.0,0.00032877,31]
[395027457,1764349851186,-151.0,0.00032877,31]
[395027459,1764349851195,-300.000119,0.00032877,31]
[395027461,1764349851205,-383.729001,0.00032877,31]
[395027463,1764349851215,-383.729001,0.00032877,31]
[395027465,1764349851225,-383.729001,0.00032877,31]
[395027467,1764349851236,-383.729001,0.00032877,31]
[395027469,1764349851246,-383.729001,0.00032877,31]
[395027471,1764349851256,-383.729001,0.00032877,31]
[395027473,1764349851266,-383.729001,0.00032877,31]
[395027476,1764349851276,-383.729001,0.00032877,31]
[395027478,1764349851286,-383.729001,0.00032877,31]
[395027481,1764349851307,-383.729001,0.00032877,31]
[395027483,1764349851318,-383.729001,0.00032877,31]
[395027485,1764349851329,-383.729001,0.00032877,31]
[395027488,1764349851341,-383.729001,0.00032877,31]
[395027490,1764349851353,-383.729001,0.00032877,31]
[395027492,1764349851364,-383.729001,0.00032877,31]
[395027494,1764349851375,-383.729001,0.00032877,31]
[395027496,1764349851386,-150.0,0.00032877,2]
[395027499,1764349851398,-500.0,0.00032877,7]
[395027501,1764349851410,-500.0,0.00032877,7]
[395027503,1764349851422,-500.0,0.00032877,7]
[395027505,1764349851433,-500.0,0.00032877,7]
[395027508,1764349851444,-172.35698831,0.00032877,7]
[395027510,1764349851454,-154.0,0.00033,31]
[395027512,1764349851465,-154.0,0.00033,120]
[395027514,1764349851476,-158.0,0.00033,14]
[395027516,1764349851486,-163.0,0.00033,60]
[395027518,1764349851497,-737.07,0.00033,30]
[395027521,1764349851508,-15890.29716548,0.00033,13]
[395027523,1764349851518,-12621.07733356,0.00033,13]
[395027525,1764349851529,-500.0,0.00033,120]
[395027527,1764349851539,-1211.39905541,0.00033,120]
[395027529,1764349851551,-272.2198679,0.00033,120]
[395027531,1764349851561,-160.68436436,0.00033,120]
[395027534,1764349851572,-198.79056431,0.00033,120]
[395027536,1764349851582,-160.90747591,0.00033,120]
[395027538,1764349851593,-150.0,0.00033,14]
[395027540,1764349851604,-150.0,0.00033014,2]
[395027542,1764349851614,-500.0,0.00033085,7]
[395027544,1764349851624,-152.0,0.00033117,5]
[395027546,1764349851635,-200.0,0.00033151,2]
[395027549,1764349851650,-720.29,0.00033165,2]
[395027551,1764349851661,-161.0,0.00033226,30]
[395027553,1764349851673,-4152.53,0.000333,14]
[395027555,1764349851684,-551.939878,0.00033352,7]
[395027558,1764349851695,-248.71531821,0.00033424,2]
[395027560,1764349851707,-500.0,0.00033494,7]
[395027562,1764349851723,-152.0,0.00033713,6]
[395027564,1764349851734,-500.0,0.00033857,7]
[395027566,1764349851746,-686.65,0.000339,14]
[395027569,1764349851758,-1211.39905541,0.000339,120]
[395027571,1764349851770,-272.2198679,0.000339,120]
[395027573,1764349851781,-160.68436436,0.000339,120]
[395027575,1764349851794,-160.90747591,0.000339,120]
[395027578,1764349851805,-2729.39923456,0.00033935,2]
[395027580,1764349851816,-500.0,0.00033939,60]
[395027582,1764349851827,-1300.0,0.00033972,14]
[395027584,1764349851837,-500.0,0.00033972,14]
[395027586,1764349851849,-525.10990833,0.00033972,14]
[395027588,1764349851860,-176.05041602,0.00034,30]
[395027590,1764349851870,-300.0,0.00034,120]
[395027592,1764349851881,-481.11077973,0.00034087,2]
[395027594,1764349851891,-737.07,0.000342,30]
[395027597,1764349851903,-151.0,0.00034247,31]
[395027599,1764349851913,-151.0,0.00034247,31]
[395027601,1764349851924,-151.0,0.00034247,31]
[395027603,1764349851934,-151.0,0.00034247,31]
[395027605,1764349851944,-151.0,0.00034247,31]
[395027607,1764349851955,-151.0,0.00034247,31]
[395027609,1764349851965,-151.0,0.00034247,31]
[395027611,1764349851976,-151.0,0.00034247,31]
[395027614,1764349851986,-151.0,0.00034247,31]
[395027616,1764349851996,-151.0,0.00034247,31]
[395027618,1764349852007,-171.380797,0.00034247,31]
[395027620,1764349852017,-151.0,0.00034247,31]
[395027622,1764349852027,-151.0,0.00034247,31]
[395027624,1764349852037,-151.0,0.00034247,31]
[395027626,1764349852048,-151.0,0.00034247,31]
[395027628,1764349852058,-151.0,0.00034247,31]
[395027631,1764349852068,-151.0,0.00034247,31]
[395027633,1764349852078,-151.0,0.00034247,31]
[395027635,1764349852088,-151.0,0.00034247,31]
[395027637,1764349852098,-151.0,0.00034247,31]
[395027639,1764349852108,-179.251739,0.00034247,31]
[395027641,1764349852119,-151.0,0.00034247,31]
[395027643,1764349852128,-151.0,0.00034247,31]
[395027645,1764349852139,-151.0,0.00034247,31]
[395027647,1764349852148,-151.0,0.00034247,31]
[395027649,1764349852159,-151.0,0.00034247,31]
[395027651,1764349852169,-151.0,0.00034247,31]
[395027653,1764349852179,-151.0,0.00034247,31]
[395027655,1764349852190,-151.0,0.00034247,31]
[395027657,1764349852199,-151.0,0.00034247,31]
[395027659,1764349852210,-187.232095,0.00034247,31]
[395027662,1764349852220,-180.87426,0.00034247,31]
[395027664,1764349852230,-180.87426,0.00034247,31]
[395027666,1764349852240,-180.87426,0.00034247,31]
[395027668,1764349852250,-180.87426,0.00034247,31]
[395027670,1764349852261,-151.0,0.00034247,31]
[395027672,1764349852272,-180.87426,0.00034247,31]
[395027674,1764349852282,-151.0,0.00034247,31]
[395027677,1764349852292,-180.87426,0.00034247,31]
[395027679,1764349852302,-151.0,0.00034247,31]
[395027681,1764349852312,-151.0,0.00034247,31]
[395027683,1764349852322,-180.87426,0.00034247,31]
[395027685,1764349852332,-151.0,0.00034247,31]
[395027687,1764349852342,-151.0,0.00034247,31]
[395027689,1764349852353,-180.87426,0.00034247,31]
[395027691,1764349852363,-151.0,0.00034247,31]
[395027693,1764349852373,-151.0,0.00034247,31]
[395027695,1764349852383,-180.87426,0.00034247,31]
[395027697,1764349852394,-151.0,0.00034247,31]
[395027699,1764349852404,-151.0,0.00034247,31]
[395027702,1764349852414,-180.87426,0.00034247,31]
[395027704,1764349852424,-180.87426,0.00034247,31]
[395027706,1764349852434,-200.575124,0.00034247,31]
[395027708,1764349852444,-151.0,0.00034247,31]
[395027710,1764349852454,-180.87426,0.00034247,31]
[395027712,1764349852465,-151.0,0.00034247,31]
[395027714,1764349852475,-151.0,0.00034247,31]
[395027716,1764349852486,-170.772793,0.00034247,31]
[395027718,1764349852496,-180.87426,0.00034247,31]
[395027720,1764349852506,-180.87426,0.00034247,31]
[395027723,1764349852518,-180.87426,0.00034247,31]
[395027759,1764349852865,-180.87426,0.00034247,31]
[395027762,1764349852875,-180.87426,0.00034247,31]
[395027763,1764349852884,-180.87426,0.00034247,31]
[395027766,1764349852894,-180.87426,0.00034247,31]
[395027768,1764349852903,-180.874268,0.00034247,31]
[395027769,1764349852913,-151.0,0.00034247,31]
[395027772,1764349852922,-151.0,0.00034247,31]
[395027773,1764349852931,-151.0,0.00034247,31]
[395027775,1764349852941,-151.0,0.00034247,31]
[395027778,1764349852950,-151.0,0.00034247,31]
[395027780,1764349852960,-189.63494,0.00034247,31]
[395027782,1764349852971,-151.0,0.00034247,31]
[395027784,1764349852979,-151.0,0.00034247,31]
[395027785,1764349852989,-151.0,0.00034247,31]
[395027787,1764349852998,-151.0,0.00034247,31]
[395027789,1764349853007,-151.0,0.00034247,31]
[395027791,1764349853017,-151.0,0.00034247,31]
[395027793,1764349853027,-151.0,0.00034247,31]
[395027796,1764349853037,-151.0,0.00034247,31]
[395027798,1764349853047,-151.0,0.00034247,31]
[395027800,1764349853056,-151.0,0.00034247,31]
[395027802,1764349853066,-151.0,0.00034247,31]
[395027803,1764349853076,-151.0,0.00034247,31]
[395027805,1764349853086,-184.112763,0.00034247,31]
[395027808,1764349853096,-151.0,0.00034247,31]
[395027809,1764349853105,-151.0,0.00034247,31]
[395027811,1764349853115,-155.459607,0.00034247,31]
[395027814,1764349853124,-156.393672,0.00034247,31]
[395027816,1764349853135,-151.0,0.00034247,31]
[395027818,1764349853145,-151.0,0.00034247,31]
[395027820,1764349853154,-151.0,0.00034247,31]
[395027822,1764349853164,-151.0,0.00034247,31]
[395027824,1764349853175,-151.0,0.00034247,31]
[395027826,1764349853190,-151.0,0.00034247,31]
[395027828,1764349853201,-151.0,0.00034247,31]
[395027830,1764349853211,-151.0,0.00034247,31]
[395027832,1764349853221,-218.979357,0.00034247,31]
[395027834,1764349853231,-219.406135,0.00034247,31]
[395027836,1764349853241,-219.406135,0.00034247,31]
[395027838,1764349853251,-151.0,0.00034247,31]
[395027839,1764349853261,-219.406135,0.00034247,31]
[395027840,1764349853271,-219.406135,0.00034247,31]
[395027841,1764349853282,-151.0,0.00034247,31]
[395027842,1764349853292,-219.406135,0.00034247,31]
[395027843,1764349853302,-151.0,0.00034247,31]
[395027844,1764349853312,-151.0,0.00034247,31]
[395027845,1764349853323,-219.406135,0.00034247,31]
[395027846,1764349853333,-151.0,0.00034247,31]
[395027847,1764349853343,-151.0,0.00034247,31]
[395027848,1764349853354,-219.406135,0.00034247,31]
[395027849,1764349853364,-275.499811,0.00034247,31]
[395027850,1764349853374,-219.406135,0.00034247,31]
[395027851,1764349853384,-151.0,0.00034247,31]
[395027852,1764349853395,-219.406135,0.00034247,31]
[395027853,1764349853404,-151.0,0.00034247,31]
[395027854,1764349853414,-151.0,0.00034247,31]
[395027855,1764349853425,-219.406135,0.00034247,31]
[395027856,1764349853435,-151.0,0.00034247,31]
[395027857,1764349853445,-151.0,0.00034247,31]
[395027858,1764349853455,-219.406135,0.00034247,31]
[395027859,1764349853465,-151.0,0.00034247,31]
[395027860,1764349853476,-163.322617,0.00034247,31]
[395027861,1764349853486,-219.406135,0.00034247,31]
[395027862,1764349853495,-151.0,0.00034247,31]
[395027863,1764349853504,-151.0,0.00034247,31]
[395027864,1764349853514,-219.406135,0.00034247,31]
[395027865,1764349853524,-151.0,0.00034247,31]
[395027866,1764349853534,-151.0,0.00034247,31]
[395027868,1764349853544,-151.0,0.00034247,31]
[395027870,1764349853554,-151.0,0.00034247,31]
[395027872,1764349853563,-219.406135,0.00034247,31]
[395027874,1764349853573,-151.0,0.00034247,31]
[395027876,1764349853583,-219.406135,0.00034247,31]
[395027878,1764349853593,-151.0,0.00034247,31]
[395027880,1764349853603,-151.0,0.00034247,31]
[395027882,1764349853612,-219.406135,0.00034247,31]
[395027884,1764349853621,-151.0,0.00034247,31]
[395027886,1764349853630,-151.0,0.00034247,31]
[395027888,1764349853640,-151.0,0.00034247,31]
[395027890,1764349853649,-219.406135,0.00034247,31]
[395027891,1764349853659,-208.629845,0.00034247,31]
[395027894,1764349853669,-151.0,0.00034247,31]
[395027895,1764349853680,-219.406135,0.00034247,31]
[395027897,1764349853689,-151.0,0.00034247,31]
[395027899,1764349853700,-151.0,0.00034247,31]
[395027902,1764349853715,-219.406135,0.00034247,31]
[395027904,1764349853732,-151.0,0.00034247,31]
[395027906,1764349853747,-151.0,0.00034247,31]
[395027908,1764349853757,-219.40614,0.00034247,31]
[395027910,1764349853768,-151.0,0.00034247,31]
[395027912,1764349853778,-151.0,0.00034247,31]
[395027914,1764349853788,-151.0,0.00034247,31]
[395027916,1764349853799,-151.0,0.00034247,31]
[395027918,1764349853809,-151.0,0.00034247,31]
[395027920,1764349853818,-151.0,0.00034247,31]
[395027922,1764349853827,-151.0,0.00034247,31]
[395027924,1764349853837,-151.0,0.00034247,31]
[395027926,1764349853847,-156.422355,0.00034247,31]
[395027928,1764349853857,-151.0,0.00034247,31]
[395027930,1764349853867,-151.0,0.00034247,31]
[395027932,1764349853877,-151.0,0.00034247,31]
[395027934,1764349853886,-151.0,0.00034247,31]
[395027936,1764349853896,-151.0,0.00034247,31]
[395027938,1764349853905,-183.766702,0.00034247,31]
[395027940,1764349853915,-151.0,0.00034247,31]
[395027942,1764349853925,-151.0,0.00034247,31]
[395027945,1764349853935,-151.0,0.00034247,31]
[395027947,1764349853944,-151.0,0.00034247,31]
[395027949,1764349853954,-151.0,0.00034247,31]
[395027951,1764349853963,-151.0,0.00034247,31]
[395027953,1764349853974,-151.0,0.00034247,31]
[395027955,1764349853983,-151.0,0.00034247,31]
[395027957,1764349853993,-151.0,0.00034247,31]
[395027959,1764349854003,-151.0,0.00034247,31]
[395027961,1764349854013,-151.0,0.00034247,31]
[395027963,1764349854023,-151.0,0.00034247,31]
[395027965,1764349854032,-151.0,0.00034247,31]
[395027967,1764349854042,-271.946615,0.00034247,31]
[395027969,1764349854052,-151.0,0.00034247,31]
[395027971,1764349854062,-151.0,0.00034247,31]
[395027973,1764349854072,-151.0,0.00034247,31]
[395027975,1764349854082,-151.0,0.00034247,31]
[395027977,1764349854092,-151.0,0.00034247,31]
[395027979,1764349854102,-151.0,0.00034247,31]
[395027981,1764349854112,-259.121839,0.00034247,31]
[395027983,1764349854124,-151.0,0.00034247,31]
[395027985,1764349854134,-151.0,0.00034247,31]
[395027987,1764349854146,-151.0,0.00034247,31]
[395027989,1764349854156,-151.0,0.00034247,31]
[395027991,1764349854166,-151.0,0.00034247,31]
[395027993,1764349854176,-151.0,0.00034247,31]
[395027995,1764349854186,-151.0,0.00034247,31]
[395027997,1764349854196,-151.0,0.00034247,31]
[395027999,1764349854207,-151.0,0.00034247,31]
[395028001,1764349854217,-151.0,0.00034247,31]
[395028003,1764349854228,-236.079356,0.00034247,31]
[395028005,1764349854239,-151.0,0.00034247,31]
[395028007,1764349854248,-151.0,0.00034247,31]
[395028009,1764349854258,-151.0,0.00034247,31]
[395028011,1764349854268,-151.0,0.00034247,31]
[395028013,1764349854279,-151.0,0.00034247,31]
[395028015,1764349854290,-151.0,0.00034247,31]
[395028017,1764349854300,-151.0,0.00034247,31]
[395028019,1764349854310,-154.947844,0.00034247,31]
[395028021,1764349854320,-151.0,0.00034247,31]
[395028024,1764349854330,-151.0,0.00034247,31]
[395028026,1764349854340,-151.0,0.00034247,31]
[395028028,1764349854349,-151.0,0.00034247,31]
[395028029,1764349854359,-151.0,0.00034247,31]
[395028031,1764349854368,-151.0,0.00034247,31]
[395028033,1764349854379,-167.385383,0.00034247,31]
[395028035,1764349854389,-151.0,0.00034247,31]
[395028037,1764349854398,-151.0,0.00034247,31]
[395028039,1764349854407,-151.0,0.00034247,31]
[395028041,1764349854417,-151.0,0.00034247,31]
[395028043,1764349854428,-151.0,0.00034247,31]
[395028045,1764349854437,-151.0,0.00034247,31]
[395028047,1764349854447,-151.0,0.00034247,31]
[395028049,1764349854456,-151.0,0.00034247,31]
[395028051,1764349854465,-151.0,0.00034247,31]
[395028053,1764349854475,-151.0,0.00034247,31]
[395028055,1764349854484,-151.0,0.00034247,31]
[395028057,1764349854494,-266.029318,0.00034247,31]
[395028060,1764349854508,-151.0,0.00034247,31]
[395028062,1764349854517,-151.0,0.00034247,31]
[395028064,1764349854528,-151.0,0.00034247,31]
[395028066,1764349854538,-151.0,0.00034247,31]
[395028068,1764349854548,-151.0,0.00034247,31]
[395028070,1764349854557,-151.0,0.00034247,31]
[395028072,1764349854567,-173.474719,0.00034247,31]
[395028074,1764349854576,-151.0,0.00034247,31]
[395028076,1764349854586,-151.0,0.00034247,31]
[395028078,1764349854597,-151.0,0.00034247,31]
[395028080,1764349854606,-151.0,0.00034247,31]
[395028082,1764349854615,-151.0,0.00034247,31]
[395028084,1764349854625,-151.0,0.00034247,31]
[395028086,1764349854634,-151.0,0.00034247,31]
[395028088,1764349854644,-151.0,0.00034247,31]
[395028090,1764349854654,-151.0,0.00034247,31]
[395028093,1764349854674,-151.0,0.00034247,31]
[395028095,1764349854684,-151.0,0.00034247,31]
[395028097,1764349854693,-151.0,0.00034247,31]
[395028099,1764349854703,-151.0,0.00034247,31]
[395028101,1764349854715,-151.0,0.00034247,31]
[395028103,1764349854725,-157.229533,0.00034247,31]
[395028104,1764349854734,-151.0,0.00034247,30]
[395028106,1764349854744,-151.0,0.00034247,30]
[395028108,1764349854755,-151.0,0.00034247,30]
[395028111,1764349854764,-151.0,0.00034247,30]
[395028112,1764349854774,-151.0,0.00034247,30]
[395028114,1764349854784,-151.0,0.00034247,30]
[395028117,1764349854794,-159.913641,0.00034247,30]
[395028119,1764349854804,-151.0,0.00034247,31]
[395028121,1764349854813,-151.0,0.00034247,31]
[395028123,1764349854822,-151.0,0.00034247,31]
[395028125,1764349854833,-151.0,0.00034247,31]
[395028127,1764349854843,-177.632374,0.00034247,31]
[395028129,1764349854852,-151.0,0.00034247,31]
[395028131,1764349854861,-151.0,0.00034247,31]
[395028133,1764349854871,-151.0,0.00034247,31]
[395028135,1764349854880,-151.0,0.00034247,31]
[395028137,1764349854890,-151.0,0.00034247,31]
[395028139,1764349854902,-151.0,0.00034247,31]
[395028141,1764349854911,-151.0,0.00034247,31]
[395028143,1764349854921,-151.0,0.00034247,31]
[395028145,1764349854931,-151.0,0.00034247,31]
[395028147,1764349854940,-188.065079,0.00034247,31]
[395028149,1764349854950,-151.0,0.00034247,31]
[395028151,1764349854959,-208.947228,0.00034247,31]
[395028153,1764349854968,-151.0,0.00034247,31]
[395028155,1764349854977,-151.0,0.00034247,31]
[395028157,1764349854987,-151.0,0.00034247,31]
[395028159,1764349854996,-151.0,0.00034247,31]
[395028161,1764349855006,-151.0,0.00034247,31]
[395028163,1764349855015,-151.0,0.00034247,31]
[395028165,1764349855026,-151.0,0.00034247,31]
[395028167,1764349855036,-151.0,0.00034247,31]
[395028170,1764349855046,-151.0,0.00034247,31]
[395028172,1764349855055,-151.0,0.00034247,31]
[395028174,1764349855065,-151.0,0.00034247,31]
[395028176,1764349855075,-173.352249,0.00034247,31]
[395028178,1764349855084,-151.0,0.00034247,31]
[395028179,1764349855094,-151.0,0.00034247,31]
[395028182,1764349855104,-151.0,0.00034247,31]
[395028184,1764349855114,-151.0,0.00034247,31]
[395028186,1764349855123,-151.0,0.00034247,31]
[395028188,1764349855133,-151.0,0.00034247,31]
[395028190,1764349855142,-151.0,0.00034247,31]
[395028192,1764349855151,-151.0,0.00034247,31]
[395028194,1764349855161,-151.0,0.00034247,31]
[395028196,1764349855171,-151.0,0.00034247,31]
[395028198,1764349855180,-151.0,0.00034247,31]
[395028200,1764349855189,-151.0,0.00034247,31]
[395028202,1764349855199,-151.0,0.00034247,31]
[395028204,1764349855208,-151.0,0.00034247,31]
[395028206,1764349855217,-151.0,0.00034247,31]
[395028208,1764349855227,-253.521479,0.00034247,31]
[395028210,1764349855236,-151.0,0.00034247,31]
[395028221,1764349855343,-151.0,0.00034247,31]
[395028224,1764349855353,-151.0,0.00034247,31]
[395028226,1764349855362,-167.403522,0.00034247,31]
[395028228,1764349855371,-154.431954,0.00034247,31]
[395028230,1764349855380,-151.0,0.00034247,31]
[395028232,1764349855389,-151.0,0.00034247,31]
[395028234,1764349855397,-168.512027,0.00034247,31]
[395028235,1764349855408,-151.0,0.00034247,31]
[395028238,1764349855417,-151.0,0.00034247,31]
[395028239,1764349855426,-151.0,0.00034247,31]
[395028241,1764349855435,-151.0,0.00034247,31]
[395028243,1764349855443,-151.0,0.00034247,31]
[395028245,1764349855452,-151.0,0.00034247,31]
[395028247,1764349855461,-151.0,0.00034247,31]
[395028249,1764349855470,-151.0,0.00034247,31]
[395028251,1764349855480,-151.0,0.00034247,31]
[395028253,1764349855489,-151.0,0.00034247,31]
[395028255,1764349855498,-151.0,0.00034247,31]
[395028257,1764349855507,-151.0,0.00034247,31]
[395028259,1764349855516,-151.0,0.00034247,31]